bitfinex/quotes_SOLUSD_20251117
["timestamp","ask_amount","ask_price","bid_price","bid_amount"]
[1763404890106,27.71585893,131.18,131.12,0.1]
[1763404890281,8.88489893,131.17,131.13,14.44882769]
[1763404890453,8.88489893,131.18,131.13,18.67372662]
[1763404890661,8.88489893,131.18,131.15,9.78882769]
[1763404890859,8.88489893,131.17,131.16,4.66]
[1763404891292,8.88489893,131.17,131.12,9.88882769]
[1763404891461,8.88489893,131.14,131.12,0.1]
[1763404891658,8.88489893,131.14,131.13,4.66]
[1763404891860,9.59489893,131.14,131.13,4.66]
[1763404892061,8.88489893,131.14,131.13,4.66]
[1763404892256,18.12096,131.16,131.13,4.66]
[1763404892257,27.71585893,131.16,131.13,4.66]
[1763404892499,8.88489893,131.14,131.12,0.1]
[1763404892793,9.59489893,131.14,131.13,4.66]
[1763404893887,8.88489893,131.15,131.13,4.66]
[1763404894086,27.00585893,131.16,131.13,5.38]
[1763404895363,27.71585893,131.16,131.13,4.66]
[1763404895562,27.00585893,131.16,131.13,4.66]
[1763404896185,27.71585893,131.16,131.13,4.66]
[1763404896377,8.88489893,131.15,131.13,4.66]
[1763404896576,27.71585893,131.16,131.13,4.66]
[1763404897691,27.71585893,131.16,131.12,9.88882769]
[1763404897692,27.00585893,131.15,131.14,4.66]
[1763404897868,18.12096,131.15,131.14,4.66]
[1763404898765,42.79321706,131.18,131.14,15.16882769]
[1763404898987,42.79321706,131.18,131.15,0.72]
[1763404899201,18.12096,131.18,131.15,0.72]
[1763404899510,8.88489893,131.19,131.16,9.78882769]
[1763404899670,18.83096,131.2,131.17,4.66]
[1763404900001,16.49735813,131.25,131.2,9.78882769]
[1763404900206,18.12096,131.22,131.21,4.66]
[1763404900366,9.59489893,131.24,131.21,4.66]
[1763404900566,18.12096,131.22,131.21,4.66]
[1763404900763,0.71,131.24,131.21,4.66]
[1763404900985,24.67225706,131.25,131.21,4.66]
[1763404900986,15.78735813,131.25,131.22,9.78882769]
[1763404901197,50.0,131.34,131.22,9.78882769]
[1763404901198,50.71,131.31,131.25,9.78882769]
[1763404901525,9.59489893,131.31,131.26,13.52489893]
[1763404901672,0.2,131.35,131.31,9.78882769]
[1763404901990,0.2,131.35,131.34,18.67372662]
[1763404902167,0.2,131.35,131.34,19.39372662]
[1763404902910,0.2,131.35,131.34,8.88489893]
[1763404903069,0.2,131.35,131.34,13.52489893]
[1763404903904,0.2,131.35,131.34,23.31372662]
[1763404904980,0.2,131.35,131.34,24.03372662]
[1763404905277,0.2,131.35,131.34,23.31372662]
[1763404905897,0.2,131.35,131.34,24.03372662]
[1763404906174,0.2,131.35,131.34,23.31372662]
[1763404907869,0.2,131.35,131.34,24.03372662]
[1763404908910,0.2,131.35,131.34,29.04144318]
[1763404909729,0.2,131.35,131.34,15.14882769]
[1763404910030,0.2,131.35,131.34,29.04144318]
[1763404912504,0.2,131.35,131.34,9.78882769]
[1763404912819,0.2,131.35,131.34,28.32144318]
[1763404913135,0.2,131.35,131.34,29.04144318]
[1763404915163,0.2,131.35,131.34,9.78882769]
[1763404915442,0.2,131.35,131.34,28.32144318]
[1763404916768,0.2,131.35,131.33,13.89261549]
[1763404916769,0.89,131.35,131.33,13.89261549]
[1763404916938,0.89,131.35,131.34,4.64]
[1763404917432,0.89,131.35,131.32,13.89261549]
[1763404917433,18.12096,131.34,131.32,13.89261549]
[1763404917661,18.12096,131.34,131.28,0.72]
[1763404917662,18.81096,131.34,131.3,13.89261549]
[1763404917964,18.81096,131.34,131.31,18.53261549]
[1763404918157,0.69,131.33,131.32,4.64]
[1763404919844,17.81096,131.34,131.32,4.64]
[1763404920255,31.70357549,131.34,131.32,4.64]
[1763404920451,17.81096,131.34,131.32,4.64]
[1763404920845,31.70357549,131.34,131.3,13.89261549]
[1763404921045,17.81096,131.34,131.31,4.64]
[1763404921266,17.81096,131.34,131.31,14.61261549]
[1763404921561,0.2,131.35,131.34,9.78882769]
[1763404921762,0.2,131.35,131.34,28.32144318]
[1763404921967,50.69,131.44,131.34,29.04144318]
[1763404922152,18.12096,131.4,131.38,13.89261549]
[1763404922350,18.12096,131.4,131.38,4.64]
[1763404922351,13.89261549,131.4,131.38,4.64]
[1763404922653,18.12096,131.4,131.38,4.64]
[1763404922855,0.69,131.4,131.38,4.64]
[1763404923043,0.69,131.4,131.38,4.2903]
[1763404923248,18.12096,131.39,131.38,4.2903]
[1763404923467,32.01357549,131.39,131.38,4.2903]
[1763404923666,32.70357549,131.39,131.38,4.2903]
[1763404924448,32.70357549,131.39,131.34,23.68144318]
[1763404924664,32.70357549,131.39,131.35,4.64]
[1763404925375,14.58261549,131.41,131.36,24.40144318]
[1763404925548,13.89261549,131.42,131.37,18.53261549]
[1763404925873,18.12096,131.41,131.37,4.64]
[1763404926071,14.58261549,131.41,131.37,4.64]
[1763404926276,50.0,131.45,131.38,9.78882769]
[1763404926454,13.89261549,131.43,131.39,4.64]
[1763404926772,0.69,131.43,131.39,4.64]
[1763404926972,18.12096,131.41,131.39,18.53261549]
[1763404927171,14.58261549,131.44,131.39,19.25261549]
[1763404927376,18.81096,131.43,131.39,4.64]
[1763404927560,18.81096,131.43,131.4,9.78882769]
[1763404927561,18.12096,131.43,131.4,9.78882769]
[1763404929191,18.12096,131.42,131.41,4.64]
[1763404929651,14.58261549,131.43,131.41,4.64]
[1763404929855,0.69,131.43,131.41,4.64]
[1763404930048,14.58261549,131.43,131.41,4.64]
[1763404930258,32.01357549,131.44,131.41,4.64]
[1763404930588,18.12096,131.42,131.41,5.36]
[1763404930961,18.12096,131.42,131.41,4.64]
[1763404931557,18.12096,131.44,131.41,19.22261549]
[1763404931758,15.78735813,131.47,131.42,24.37144318]
[1763404931966,14.09261549,131.49,131.44,23.68144318]
[1763404932161,0.2,131.49,131.46,23.68144318]
[1763404932360,0.2,131.49,131.47,4.64]
[1763404932662,13.89261549,131.48,131.47,4.64]
[1763404932865,32.92357549,131.49,131.47,4.64]
[1763404933092,18.32096,131.49,131.47,4.64]
[1763404933467,0.2,131.49,131.47,5.33]
[1763404934196,0.2,131.49,131.48,10.47882769]
[1763404934385,0.2,131.49,131.47,4.64]
[1763404934997,0.2,131.49,131.48,10.47882769]
[1763404935369,0.2,131.49,131.48,9.78882769]
[1763404935997,0.2,131.49,131.47,4.64]
[1763404936168,14.09261549,131.49,131.47,4.64]
[1763404936371,32.72357549,131.48,131.4,0.69]
[1763404936571,32.72357549,131.48,131.26,12.7187933]
[1763404936572,13.89261549,131.43,131.41,4.64]
[1763404936769,13.89261549,131.43,131.37,0.69]
[1763404936770,13.89261549,131.42,131.37,0.69]
[1763404936986,13.89261549,131.41,131.38,0.69]
[1763404937174,13.89261549,131.4,131.38,5.33]
[1763404937376,13.89261549,131.39,131.38,4.64]
[1763404938619,14.56261549,131.39,131.38,4.64]
[1763404938784,14.56261549,131.39,131.36,4.64]
[1763404938991,13.89261549,131.37,131.36,4.64]
[1763404939388,18.12096,131.34,131.29,0.67]
[1763404939590,13.89261549,131.33,131.3,4.64]
[1763404939903,32.01357549,131.34,131.31,9.78882769]
[1763404940141,13.89261549,131.32,131.3,4.64]
[1763404940602,18.12096,131.3,131.24,0.77]
[1763404940792,13.89261549,131.28,131.25,4.64]
[1763404940995,13.89261549,131.26,131.25,4.64]
[1763404941224,13.89261549,131.27,131.25,5.31]
[1763404941528,13.89261549,131.27,131.24,0.1]
[1763404941529,13.89261549,131.26,131.24,0.1]
[1763404941695,13.89261549,131.25,131.24,0.1]
[1763404942127,13.89261549,131.28,131.25,9.78882769]
[1763404942339,18.12096,131.29,131.26,4.64]
[1763404942525,32.01357549,131.29,131.26,4.64]
[1763404942689,18.12096,131.3,131.27,10.45882769]
[1763404943209,32.01357549,131.3,131.27,10.45882769]
[1763404943524,18.79096,131.33,131.28,0.67]
[1763404943724,13.89261549,131.31,131.29,4.64]
[1763404944016,32.01357549,131.3,131.29,4.64]
[1763404945198,13.89261549,131.33,131.29,5.31]
[1763404945601,13.89261549,131.34,131.3,0.67]
[1763404945800,13.89261549,131.33,131.3,9.78882769]
[1763404946008,0.67,131.37,131.3,10.45882769]
[1763404946201,13.89261549,131.35,131.31,0.67]
[1763404946519,4.64,131.39,131.32,14.42882769]
[1763404946520,18.12096,131.36,131.32,14.42882769]
[1763404946738,50.0,131.44,131.32,14.42882769]
[1763404946739,13.89261549,131.37,131.32,14.42882769]
[1763404946945,13.89261549,131.38,131.34,9.78882769]
[1763404947241,13.89261549,131.38,131.35,4.64]
[1763404947536,14.56261549,131.37,131.35,4.64]
[1763404947708,13.89261549,131.36,131.35,4.64]
[1763404948097,32.01357549,131.37,131.35,4.64]
[1763404948303,13.89261549,131.37,131.35,5.31]
[1763404948736,14.56261549,131.36,131.35,4.64]
[1763404948909,82.68357549,131.36,131.31,4.64]
[1763404949222,13.89261549,131.32,131.31,4.64]
[1763404950108,18.12096,131.36,131.31,4.64]
[1763404950316,13.89261549,131.33,131.31,4.64]
[1763404950508,18.12096,131.36,131.32,0.67]
[1763404950708,13.89261549,131.33,131.31,15.09882769]
[1763404951424,13.89261549,131.35,131.32,10.45882769]
[1763404951604,32.01357549,131.36,131.32,10.45882769]
[1763404951806,32.01357549,131.36,131.33,0.67]
[1763404952006,13.89261549,131.36,131.34,4.64]
[1763404953022,32.01357549,131.37,131.34,4.64]
[1763404953429,0.67,131.4,131.34,4.64]
[1763404953725,32.01357549,131.38,131.35,9.78882769]
[1763404953922,47.80093362,131.38,131.35,9.78882769]
[1763404954151,13.89261549,131.36,131.35,9.78882769]
[1763404954455,33.90831813,131.38,131.34,4.64]
[1763404954637,13.89261549,131.35,131.33,4.64]
[1763404954836,13.89261549,131.34,131.33,4.64]
[1763404955650,18.12096,131.35,131.3,4.64]
[1763404955851,13.89261549,131.34,131.31,10.45882769]
[1763404956150,13.89261549,131.36,131.31,10.45882769]
[1763404956360,32.01357549,131.35,131.31,10.45882769]
[1763404956537,0.67,131.39,131.32,0.67]
[1763404956722,13.89261549,131.37,131.34,9.78882769]
[1763404957140,13.89261549,131.37,131.34,10.45882769]
[1763404958254,13.89261549,131.35,131.33,4.64]
[1763404958931,13.89261549,131.35,131.33,5.31]
[1763404959132,13.89261549,131.35,131.33,4.64]
[1763404959527,18.12096,131.37,131.34,9.78882769]
[1763404959830,13.89261549,131.36,131.34,10.45882769]
[1763404960276,4.64,131.41,131.34,9.78882769]
[1763404960431,4.64,131.41,131.36,9.78882769]
[1763404960432,13.89261549,131.37,131.36,9.78882769]
[1763404960628,13.89261549,131.37,131.36,4.64]
[1763404962125,14.60261549,131.37,131.36,4.64]
[1763404962333,32.01357549,131.37,131.36,4.64]
[1763404963949,32.72357549,131.37,131.34,4.64]
[1763404964124,13.89261549,131.35,131.34,4.64]
[1763404965354,13.89261549,131.36,131.34,4.64]
[1763404965557,13.89261549,131.36,131.34,14.42882769]
[1763404966050,13.89261549,131.36,131.34,15.11882769]
[1763404966235,15.78735813,131.39,131.35,10.47882769]
[1763404966431,13.89261549,131.38,131.35,10.47882769]
[1763404966658,15.78735813,131.39,131.37,9.78882769]
[1763404966842,13.89261549,131.41,131.38,4.64]
[1763404967231,13.89261549,131.41,131.38,5.33]
[1763404967558,20.42735813,131.45,131.39,0.69]
[1763404967727,0.71,131.46,131.4,9.78882769]
[1763404967933,13.89261549,131.47,131.42,9.78882769]
[1763404968133,13.89261549,131.48,131.43,0.69]
[1763404968465,13.89261549,131.47,131.45,9.78882769]
[1763404968643,13.89261549,131.47,131.45,10.47882769]
[1763404968845,8.85751277,131.47,131.45,9.78882769]
[1763404969491,8.85751277,131.46,131.4,0.69]
[1763404969656,8.85751277,131.44,131.42,9.78882769]
[1763404970099,9.56751277,131.43,131.38,9.78882769]
[1763404970264,8.85751277,131.42,131.4,9.78882769]
[1763404970780,8.85751277,131.41,131.39,4.64]
[1763404970987,8.85751277,131.4,131.37,4.64]
[1763404971161,8.85751277,131.38,131.37,14.42882769]
[1763404971965,18.12096,131.4,131.37,15.11882769]
[1763404972184,18.12096,131.4,131.39,9.78882769]
[1763404972357,8.85751277,131.41,131.39,9.78882769]
[1763404972557,8.85751277,131.41,131.4,14.42882769]
[1763404973359,18.12096,131.44,131.4,14.42882769]
[1763404973558,8.85751277,131.44,131.41,10.47882769]
[1763404973761,8.85751277,131.45,131.41,10.47882769]
[1763404973980,8.85751277,131.44,131.41,10.47882769]
[1763404974287,8.85751277,131.44,131.41,0.69]
[1763404974492,8.85751277,131.42,131.4,4.64]
[1763404975059,8.85751277,131.43,131.4,4.64]
[1763404975274,8.85751277,131.42,131.4,4.64]
[1763404975588,8.85751277,131.41,131.4,14.42882769]
[1763404976085,8.85751277,131.41,131.4,4.64]
[1763404976591,9.56751277,131.41,131.4,4.64]
[1763404976766,9.56751277,131.41,131.38,4.64]
[1763404976968,8.85751277,131.39,131.38,4.64]
[1763404978881,8.85751277,131.4,131.38,5.33]
[1763404979072,18.12096,131.43,131.38,5.33]
[1763404979073,18.83096,131.43,131.38,5.33]
[1763404979281,8.85751277,131.41,131.39,9.78882769]
[1763404980371,8.85751277,131.4,131.38,4.64]
[1763404980572,8.85751277,131.39,131.38,4.64]
[1763404980778,8.85751277,131.39,131.36,9.78882769]
[1763404980978,8.85751277,131.39,131.2,139.23969132]
[1763404980979,8.85751277,131.37,131.31,0.69]
[1763404981180,8.85751277,131.33,131.29,0.69]
[1763404981381,8.85751277,131.32,131.3,4.64]
[1763404981571,8.85751277,131.31,131.3,4.64]
[1763404981788,8.85751277,131.31,131.3,14.42882769]
[1763404982383,8.85751277,131.31,131.3,4.64]
[1763404982795,18.12096,131.35,131.3,5.33]
[1763404982983,8.85751277,131.33,131.3,5.33]
[1763404983696,18.83096,131.35,131.3,5.33]
[1763404983880,8.85751277,131.33,131.3,5.33]
[1763404984092,8.85751277,131.32,131.3,4.64]
[1763404984304,8.85751277,131.32,131.31,9.78882769]
[1763404984694,8.85751277,131.33,131.31,10.47882769]
[1763404984991,8.85751277,131.33,131.31,9.78882769]
[1763404985193,8.85751277,131.32,131.31,9.78882769]
[1763404985387,8.85751277,131.33,131.31,9.78882769]
[1763404985799,8.85751277,131.32,131.31,9.78882769]
[1763404986316,8.85751277,131.32,131.3,4.64]
[1763404986824,8.85751277,131.35,131.31,10.47882769]
[1763404987329,8.85751277,131.35,131.33,9.78882769]
[1763404987491,8.85751277,131.35,131.34,4.64]
[1763404988188,18.12096,131.37,131.34,4.64]
[1763404988394,18.12096,131.37,131.34,5.33]
[1763404988395,8.85751277,131.37,131.34,5.33]
[1763404988593,8.85751277,131.39,131.35,10.47882769]
[1763404988916,8.85751277,131.38,131.35,9.78882769]
[1763404989117,8.85751277,131.38,131.35,10.47882769]
[1763404989307,8.85751277,131.38,131.36,0.69]
[1763404989620,8.85751277,131.38,131.37,4.64]
[1763404991603,26.97847277,131.39,131.37,4.64]
[1763404991810,18.12096,131.35,131.3,8.53579914]
[1763404992031,18.12096,131.35,131.24,16.65077669]
[1763404992032,26.83598554,131.31,131.24,0.1]
[1763404992318,18.64634046,131.25,131.24,0.1]
[1763404992503,18.12096,131.22,131.2,0.1]
[1763404992701,8.85751277,131.21,131.2,0.1]
[1763404992910,50.0,131.23,131.2,0.81]
[1763404993130,8.85751277,131.24,131.21,2.36]
[1763404993439,8.85751277,131.25,131.21,2.36]
[1763404993607,18.12096,131.27,131.22,0.71]
[1763404993807,26.97847277,131.26,131.22,0.71]
[1763404994007,8.85751277,131.25,131.22,0.71]
[1763404994212,8.85751277,131.23,131.21,2.36]
[1763404994435,8.85751277,131.22,131.21,2.36]
[1763404995646,8.85751277,131.22,131.2,0.1]
[1763404995647,58.85751277,131.22,131.2,0.1]
[1763404995805,8.85751277,131.21,131.2,0.1]
[1763404997543,26.97847277,131.21,131.2,0.1]
[1763404997756,8.85751277,131.21,131.2,0.1]
[1763404997917,17.71502554,131.21,131.2,0.1]
[1763404998513,18.12096,131.18,131.15,4.64]
[1763404998735,8.85751277,131.16,131.13,0.67]
[1763404998932,8.85751277,131.15,131.13,0.67]
[1763404999242,18.12096,131.16,131.13,4.64]
[1763404999535,8.85751277,131.14,131.13,4.64]
[1763404999710,8.85751277,131.15,131.13,5.31]
[1763405000131,8.85751277,131.15,131.13,4.64]
[1763405000319,8.85751277,131.14,131.12,0.1]
[1763405000524,8.85751277,131.14,131.13,5.31]
[1763405000938,8.85751277,131.15,131.13,5.31]
[1763405001117,18.12096,131.16,131.13,5.31]
[1763405001326,8.85751277,131.15,131.13,4.64]
[1763405001545,8.85751277,131.15,131.13,5.31]
[1763405001951,18.12096,131.16,131.14,0.67]
[1763405002315,8.85751277,131.18,131.14,10.45882769]
[1763405002512,8.85751277,131.19,131.15,0.67]
[1763405002940,26.97847277,131.2,131.15,0.67]
[1763405003133,26.97847277,131.2,131.15,9.52751277]
[1763405003334,8.85751277,131.21,131.15,9.52751277]
[1763405003543,50.0,131.25,131.17,9.78882769]
[1763405003544,8.85751277,131.22,131.17,9.78882769]
[1763405003724,8.85751277,131.22,131.18,4.64]
[1763405003930,26.97847277,131.22,131.19,0.67]
[1763405004432,18.12096,131.22,131.2,9.78882769]
[1763405004829,18.12096,131.22,131.2,10.45882769]
[1763405005341,26.97847277,131.22,131.21,4.64]
[1763405006444,26.97847277,131.22,131.17,10.45882769]
[1763405006739,8.85751277,131.21,131.18,5.31]
[1763405006941,8.85751277,131.22,131.18,5.31]
[1763405007118,8.85751277,131.21,131.18,0.67]
[1763405007318,8.85751277,131.21,131.19,5.31]
[1763405007531,26.97847277,131.22,131.19,5.31]
[1763405007941,26.97847277,131.22,131.2,4.64]
[1763405008942,18.12096,131.22,131.21,0.67]
[1763405009354,18.12096,131.22,131.17,18.64634046]
[1763405009654,8.85751277,131.2,131.16,9.78882769]
[1763405009951,26.97847277,131.19,131.17,4.64]
[1763405010144,18.12096,131.19,131.18,4.64]
[1763405010469,26.97847277,131.19,131.18,4.64]
[1763405010952,8.85751277,131.2,131.18,5.31]
[1763405011667,8.85751277,131.2,131.19,4.64]
[1763405013859,18.12096,131.17,131.12,0.77]
[1763405014161,26.97847277,131.16,131.13,4.64]
[1763405014364,8.85751277,131.14,131.12,0.1]
[1763405014663,8.85751277,131.13,131.12,0.1]
[1763405014872,8.85751277,131.13,131.12,4.74]
[1763405015046,8.85751277,131.13,131.12,5.41]
[1763405015367,26.97847277,131.14,131.12,5.41]
[1763405016076,26.97847277,131.14,131.12,0.1]
[1763405016252,8.85751277,131.13,131.12,0.1]
[1763405016435,8.85751277,131.13,131.12,4.74]
[1763405016863,8.85751277,131.13,131.12,0.1]
[1763405017181,8.85751277,131.13,131.12,4.74]
[1763405017341,26.97847277,131.14,131.12,4.74]
[1763405017661,26.97847277,131.14,131.12,5.41]
[1763405018240,26.97847277,131.14,131.12,0.1]
[1763405018468,26.97847277,131.14,131.13,5.31]
[1763405018846,26.97847277,131.14,131.12,0.1]
[1763405019040,26.97847277,131.14,131.13,4.64]
[1763405020255,22.96,131.2,131.13,5.31]
[1763405020477,8.85751277,131.14,131.13,5.31]
[1763405020772,8.85751277,131.15,131.13,4.64]
[1763405020941,8.85751277,131.14,131.13,5.31]
[1763405021143,8.85751277,131.14,131.13,4.64]
[1763405021754,8.85751277,131.14,131.13,0.66]
[1763405021953,8.85751277,131.14,131.13,5.3]
[1763405023471,8.85751277,131.15,131.13,5.3]
[1763405023673,8.85751277,131.15,131.14,0.66]
[1763405025180,50.0,131.19,131.14,0.66]
[1763405025181,8.85751277,131.17,131.14,0.66]
[1763405025549,18.12096,131.19,131.15,9.78882769]
[1763405025873,8.85751277,131.2,131.15,18.64634046]
[1763405026054,8.85751277,131.2,131.16,0.66]
[1763405026385,50.0,131.22,131.17,4.64]
[1763405026560,8.85751277,131.18,131.17,4.64]
[1763405026747,8.85751277,131.18,131.17,5.3]
[1763405026950,8.85751277,131.18,131.12,0.1]
[1763405027147,8.85751277,131.15,131.13,5.3]
[1763405027373,8.85751277,131.16,131.13,0.66]
[1763405027585,8.85751277,131.15,131.14,5.3]
[1763405028048,18.12096,131.17,131.14,5.3]
[1763405028251,8.85751277,131.18,131.15,0.66]
[1763405028468,26.97847277,131.19,131.15,0.66]
[1763405028675,8.85751277,131.18,131.15,0.66]
[1763405030402,8.85751277,131.18,131.16,4.64]
[1763405030887,13.94200518,131.17,131.12,9.88882769]
[1763405031207,18.12096,131.18,131.16,0.66]
[1763405031501,18.12096,131.18,131.17,4.64]
[1763405031677,18.12096,131.16,131.14,0.66]
[1763405031875,18.12096,131.16,131.15,4.64]
[1763405032188,32.06296518,131.16,131.15,4.64]
[1763405032396,32.06296518,131.16,131.15,5.3]
[1763405032693,32.06296518,131.16,131.15,0.66]
[1763405032911,32.06296518,131.16,131.15,5.3]
[1763405033200,18.12096,131.16,131.15,5.3]
[1763405033397,32.06296518,131.16,131.15,5.3]
[1763405035381,32.06296518,131.16,131.15,0.66]
[1763405035584,32.06296518,131.16,131.15,5.3]
[1763405036082,13.94200518,131.16,131.15,5.3]
[1763405036287,13.94200518,131.16,131.15,0.66]
[1763405036494,13.94200518,131.16,131.15,5.3]
[1763405038789,18.12096,131.18,131.15,5.3]
[1763405038790,13.94200518,131.17,131.15,5.3]
[1763405038987,13.94200518,131.17,131.16,0.66]
[1763405039307,59.78882769,131.24,131.16,0.66]
[1763405039308,13.94200518,131.2,131.16,0.66]
[1763405039512,32.06296518,131.2,131.16,0.66]
[1763405039683,13.94200518,131.19,131.16,0.66]
[1763405040011,13.94200518,131.18,131.16,0.66]
[1763405040188,13.94200518,131.19,131.16,0.66]
[1763405040379,102.7,131.24,131.18,9.78882769]
[1763405040579,13.94200518,131.22,131.18,9.78882769]
[1763405040779,13.94200518,131.2,131.19,4.64]
[1763405040981,13.94200518,131.21,131.19,4.64]
[1763405041291,120.82096,131.23,131.19,4.64]
[1763405041292,13.94200518,131.22,131.2,0.66]
[1763405042488,13.94200518,131.21,131.18,0.66]
[1763405042689,13.94200518,131.21,131.12,18.22096]
[1763405042690,63.94200518,131.19,131.16,4.64]
[1763405042892,13.94200518,131.17,131.15,4.64]
[1763405043221,13.94200518,131.16,131.14,0.66]
[1763405043519,102.7,131.17,131.15,4.64]
[1763405043680,102.7,131.17,131.13,0.66]
[1763405043881,18.12096,131.15,131.14,4.64]
[1763405044198,102.7,131.17,131.14,4.64]
[1763405044406,50.0,131.25,131.15,0.66]
[1763405044594,50.0,131.26,131.18,9.78882769]
[1763405044914,32.06296518,131.24,131.19,18.58200518]
[1763405045089,32.06296518,131.24,131.19,19.24200518]
[1763405045412,13.94200518,131.23,131.2,0.66]
[1763405045610,13.94200518,131.23,131.21,4.64]
[1763405045791,18.12096,131.22,131.21,4.64]
[1763405046524,13.94200518,131.24,131.21,5.3]
[1763405046720,13.94200518,131.24,131.22,0.66]
[1763405047219,50.0,131.3,131.23,4.64]
[1763405047422,13.94200518,131.27,131.24,0.66]
[1763405048409,13.94200518,131.26,131.24,0.66]
[1763405048606,13.94200518,131.26,131.25,4.64]
[1763405048927,13.94200518,131.26,131.21,0.66]
[1763405049128,13.94200518,131.22,131.18,0.66]
[1763405049298,18.12096,131.21,131.19,5.3]
[1763405050516,13.94200518,131.2,131.19,5.3]
[1763405050852,13.94200518,131.22,131.2,0.66]
[1763405051141,13.94200518,131.24,131.2,10.44882769]
[1763405051326,13.94200518,131.25,131.21,9.78882769]
[1763405051497,13.94200518,131.25,131.21,10.44882769]
[1763405051699,13.94200518,131.25,131.22,0.7]
[1763405051902,13.94200518,131.25,131.23,4.64]
[1763405052096,13.94200518,131.24,131.23,4.64]
[1763405053317,18.12096,131.24,131.23,0.7]
[1763405053508,18.12096,131.24,131.23,5.34]
[1763405053827,32.06296518,131.24,131.23,5.34]
[1763405054223,32.06296518,131.25,131.23,5.34]
[1763405054435,2.0,131.32,131.24,0.7]
[1763405054436,50.0,131.32,131.24,0.7]
[1763405054646,13.94200518,131.28,131.24,0.7]
[1763405055007,13.94200518,131.27,131.24,0.7]
[1763405055336,13.94200518,131.25,131.24,4.64]
[1763405055506,13.94200518,131.25,131.17,8.54817408]
[1763405055831,18.12096,131.23,131.18,0.7]
[1763405056131,18.12096,131.23,131.19,4.64]
[1763405056132,13.94200518,131.2,131.19,4.64]
[1763405056537,13.94200518,131.22,131.19,5.34]
[1763405056710,13.94200518,131.22,131.19,4.64]
[1763405057025,13.94200518,131.22,131.18,0.7]
[1763405057204,13.94200518,131.22,131.19,4.64]
[1763405058249,32.06296518,131.23,131.2,0.66]
[1763405058527,13.94200518,131.22,131.19,4.64]
[1763405058715,32.06296518,131.23,131.19,5.3]
[1763405058912,32.06296518,131.23,131.19,4.64]
[1763405059129,34.63383169,131.47,131.23,9.78882769]
[1763405059130,50.0,131.32,131.23,9.78882769]
[1763405059321,18.12096,131.27,131.24,5.3]
[1763405059525,13.94200518,131.29,131.25,0.66]
[1763405059720,18.12096,131.28,131.25,0.66]
[1763405059919,13.94200518,131.29,131.25,0.66]
[1763405060121,18.12096,131.28,131.25,0.66]
[1763405060529,32.06296518,131.27,131.23,9.78882769]
[1763405060717,18.12096,131.27,131.26,4.64]
[1763405060921,32.06296518,131.27,131.26,4.64]
[1763405061619,102.7,131.32,131.26,5.3]
[1763405062020,102.7,131.32,131.27,0.66]
[1763405062405,120.82096,131.32,131.27,0.66]
[1763405062948,134.76296518,131.32,131.27,14.60200518]
[1763405063139,13.94200518,131.31,131.27,14.60200518]
[1763405063313,13.94200518,131.31,131.28,0.66]
[1763405063632,13.94200518,131.31,131.27,0.66]
[1763405064341,13.94200518,131.31,131.28,4.64]
[1763405066428,13.94200518,131.31,131.26,14.60200518]
[1763405066429,13.94200518,131.31,131.29,4.64]
[1763405066627,13.94200518,131.3,131.29,4.64]
[1763405067032,18.12096,131.3,131.29,4.64]
[1763405067849,102.7,131.32,131.29,5.3]
[1763405068153,120.82096,131.32,131.29,5.3]
[1763405068442,0.2,131.34,131.29,5.3]
[1763405068443,0.2,131.34,131.3,0.66]
[1763405068617,0.2,131.34,131.32,13.94200518]
[1763405068820,0.2,131.34,131.33,4.64]